bitfinex-derivatives/quotes_SOLF0:USTF0_20251201
["timestamp","ask_amount","ask_price","bid_price","bid_amount"]
[1764591325233,7.16588294,126.68,126.65,3.21968749]
[1764591330026,0.05948294,126.68,126.65,10.32738749]
[1764591330233,0.05948294,126.68,126.66,3.24]
[1764591331222,0.05948294,126.68,126.66,10.3474]
[1764591331428,0.05948294,126.68,126.67,3.24]
[1764591331624,110.488,126.75,126.67,3.24]
[1764591332131,7.1046,126.72,126.68,3.24]
[1764591332330,4.11631347,126.74,126.68,3.24]
[1764591332631,110.488,126.75,126.68,3.24]
[1764591332829,7.1047,126.72,126.68,3.24]
[1764591333027,0.04982737,126.71,126.69,0.05309516]
[1764591334433,7.15452737,126.71,126.69,0.05309516]
[1764591336934,7.1053,126.7,126.69,0.05309516]
[1764591338226,0.04982737,126.71,126.69,3.29309516]
[1764591341629,0.04982737,126.71,126.69,0.05309516]
[1764591342135,0.04982737,126.71,126.69,3.29309516]
[1764591348431,0.04982737,126.71,126.7,7.1053]
[1764591348632,7.1034,126.74,126.71,2.62935634]
[1764591348835,2.62935634,126.79,126.72,3.24]
[1764591349036,5.87112019,126.78,126.72,3.24]
[1764591349236,2.62935634,126.79,126.72,3.24]
[1764591349538,0.05601673,126.77,126.74,0.05866572]
[1764591350042,7.15771673,126.77,126.74,0.05866572]
[1764591350440,0.05601673,126.77,126.74,0.05866572]
[1764591352339,7.15741673,126.77,126.74,0.05866572]
[1764591352539,9.78677307,126.77,126.74,0.05866572]
[1764591353239,2.68537307,126.77,126.74,3.25866572]
[1764591354040,7.1021,126.76,126.74,3.25866572]
[1764591356843,7.1021,126.76,126.74,0.05866572]
[1764591357141,7.1025,126.75,126.74,0.05866572]
[1764591358049,7.1025,126.75,126.74,3.25866572]
[1764591358638,0.05601673,126.77,126.74,3.25866572]
[1764591360051,0.05601673,126.77,126.74,0.05866572]
[1764591361054,7.1019,126.76,126.74,3.25866572]
[1764591368854,0.05601673,126.77,126.74,3.25866572]
[1764591371850,7.15741673,126.77,126.74,3.25866572]
[1764591373858,7.1019,126.76,126.74,0.05866572]
[1764591374453,7.1019,126.76,126.74,3.25866572]
[1764591374858,7.1025,126.75,126.74,0.05866572]
[1764591378960,0.05601673,126.77,126.74,3.25866572]
[1764591381159,2.68537307,126.77,126.74,0.05866572]
[1764591382562,7.1022,126.76,126.74,0.05866572]
[1764591383858,7.1025,126.75,126.74,0.05866572]
[1764591386566,7.1046,126.72,126.7,3.36]
[1764591387363,113.13605634,126.73,126.68,3.36]
[1764591387568,113.13605634,126.73,126.69,0.05490091]
[1764591387569,2.62935634,126.71,126.69,0.05490091]
[1764591388158,2.68638239,126.72,126.69,0.05490091]
[1764591389468,7.1057,126.7,126.69,0.05490091]
[1764591390760,7.1057,126.7,126.69,3.18490091]
[1764591391259,7.1057,126.7,126.69,0.05490091]
[1764591393066,7.16162605,126.72,126.69,3.18490091]
[1764591393268,7.16162605,126.72,126.7,3.13]
[1764591393771,0.05702605,126.72,126.7,3.13]
[1764591395171,0.05702605,126.72,126.71,5.75935634]
[1764591399778,0.05702605,126.72,126.71,3.13]
[1764591399967,0.05702605,126.72,126.69,3.18490091]
[1764591401475,7.1047,126.71,126.69,3.18490091]
[1764591402794,0.05702605,126.72,126.69,3.18490091]
[1764591404494,7.16122605,126.72,126.69,3.18490091]
[1764591409198,7.1047,126.71,126.69,3.18490091]
[1764591411904,0.05702605,126.72,126.69,3.18490091]
[1764591415102,0.05702605,126.72,126.69,7.29419175]
[1764591415302,0.05702605,126.72,126.7,3.08]
[1764591416304,0.05702605,126.72,126.7,10.1851]
[1764591416501,0.05702605,126.72,126.71,3.08]
[1764591420297,0.05702605,126.72,126.69,27.11490091]
[1764591420497,0.05702605,126.72,126.7,3.08]
[1764591426117,0.05702605,126.72,126.69,34.22050091]
[1764591426118,0.05702605,126.72,126.69,3.13490091]
[1764591426316,0.05702605,126.72,126.69,0.05490091]
[1764591427415,7.1053,126.7,126.69,0.05490091]
[1764591430216,7.1064,126.68,126.65,30.14]
[1764591430419,110.5291,126.7,126.65,3.08]
[1764591430715,110.5291,126.7,126.62,4.10929084]
[1764591430716,110.5384,126.69,126.63,30.14]
[1764591431112,0.05778085,126.67,126.63,30.14]
[1764591431312,0.05778085,126.67,126.65,0.05239099]
[1764591431714,7.1075,126.66,126.65,0.05239099]
[1764591432314,0.05778085,126.67,126.61,3.08]
[1764591432315,7.1085,126.65,126.61,3.08]
[1764591433413,0.05590992,126.64,126.62,3.13901107]
[1764591434121,0.05590992,126.64,126.62,0.05901107]
[1764591434318,7.16460992,126.64,126.62,0.05901107]
[1764591435718,7.1109,126.6,126.59,1.37353963]
[1764591435929,7.1109,126.6,126.58,3.08]
[1764591436824,7.16711807,126.6,126.58,3.08]
[1764591437222,0.05621807,126.6,126.58,3.08]
[1764591438423,0.05621807,126.6,126.59,3.08]
[1764591441923,7.1098,126.62,126.59,3.08]
[1764591442129,7.1092,126.63,126.59,3.08]
[1764591442623,7.1086,126.65,126.6,3.33]
[1764591443125,0.05060913,126.64,126.62,3.33]
[1764591444225,7.15930913,126.64,126.62,3.33]
[1764591445415,7.1098,126.62,126.61,0.05791407]
[1764591446528,7.1098,126.62,126.61,3.38791407]
[1764591447428,7.1098,126.62,126.61,0.05791407]
[1764591448230,7.1108,126.61,126.57,1.37427189]
[1764591448426,7.1108,126.61,126.58,3.33]
[1764591449236,7.16494989,126.61,126.58,3.33]
[1764591449625,7.1109,126.6,126.58,3.33]
[1764591450828,0.05414989,126.61,126.58,3.33]
[1764591451224,0.05414989,126.61,126.58,7.43929084]
[1764591451424,0.05414989,126.61,126.59,3.33]
[1764591453733,0.05414989,126.61,126.59,10.4413]
[1764591454033,0.05414989,126.61,126.6,65.06]
[1764591455734,0.05414989,126.61,126.6,72.1709]
[1764591456338,0.05414989,126.61,126.6,65.06]
[1764591456730,7.1081,126.65,126.61,3.06]
[1764591456930,7.1081,126.65,126.62,3.06]
[1764591457135,110.542,126.69,126.62,3.06]
[1764591457733,0.05285137,126.67,126.64,0.05048707]
[1764591458444,7.1076,126.66,126.64,0.05048707]
[1764591459135,110.60625137,126.67,126.6,3.06]
[1764591459337,4.10929084,126.66,126.6,3.06]
[1764591459740,7.1094,126.63,126.6,3.06]
[1764591460043,7.16893542,126.63,126.6,3.06]
[1764591462733,110.65083542,126.63,126.57,3.06]
[1764591464344,7.1109,126.6,126.57,3.06]
[1764591464539,7.1613962,126.6,126.57,3.06]
[1764591465846,7.1613962,126.6,126.58,3.06]
[1764591471552,7.1114,126.59,126.56,4.70438044]
[1764591471739,7.1114,126.59,126.57,3.33]
[1764591471938,7.1114,126.59,126.56,31.78438044]
[1764591472350,7.1114,126.59,126.57,3.33]
[1764591476351,7.1613962,126.6,126.57,3.33]
[1764591480061,0.0504962,126.6,126.57,3.33]
[1764591482361,0.0504962,126.6,126.56,1.37438044]
[1764591482555,0.0504962,126.6,126.54,3.33]
[1764591482556,2.63535079,126.59,126.54,3.33]
[1764591482767,2.63535079,126.57,126.53,1.37462474]
[1764591482968,7.17190069,126.56,126.52,3.33]
[1764591483164,7.17190069,126.56,126.51,11.82059629]
[1764591483370,7.17190069,126.56,126.52,3.33]
[1764591484065,7.1137,126.55,126.52,3.33]
[1764591484770,7.1137,126.55,126.51,11.82059629]
[1764591486572,0.05840069,126.56,126.51,4.70489629]
[1764591486573,7.1146,126.54,126.51,4.70489629]
[1764591486772,110.71020069,126.56,126.51,3.33]
[1764591487169,7.1151,126.53,126.51,3.33]
[1764591487376,7.17395986,126.53,126.51,3.33]
[1764591487575,7.1154,126.52,126.5,3.33]
[1764591488074,7.1159,126.51,126.5,3.33]
[1764591489677,7.17405986,126.53,126.5,3.33]
[1764591490374,0.05885986,126.53,126.52,3.33]
[1764591491478,124.8425,126.6,126.52,3.33]
[1764591491678,127.47785079,126.6,126.54,5.96535079]
[1764591491870,7.1132,126.56,126.54,5.96535079]
[1764591492073,113.25595079,126.6,126.54,5.96535079]
[1764591492474,2.63535079,126.6,126.55,3.33]
[1764591492674,0.05696653,126.58,126.56,0.05281779]
[1764591493366,7.16896653,126.58,126.56,0.05281779]
[1764591493776,0.05696653,126.58,126.56,0.05281779]
[1764591493977,7.1126,126.57,126.56,0.05281779]
[1764591494982,0.05696653,126.58,126.56,0.05281779]
[1764591495380,0.05696653,126.58,126.56,3.38281779]
[1764591496577,0.05696653,126.58,126.56,6.01816858]
[1764591496777,0.05696653,126.58,126.57,3.33]
[1764591497282,0.05696653,126.58,126.56,6.01816858]
[1764591498075,0.05696653,126.58,126.57,3.33]
[1764591502388,0.05696653,126.58,126.56,3.31281779]
[1764591503389,7.16896653,126.58,126.56,3.31281779]
[1764591503590,0.05696653,126.58,126.56,0.05281779]
[1764591505379,7.1126,126.57,126.56,0.05281779]
[1764591505583,110.6464,126.57,126.5,3.26]
[1764591505784,113.28175079,126.57,126.5,5.89535079]
[1764591506385,113.28175079,126.57,126.51,3.26]
[1764591506585,0.05229827,126.55,126.51,3.26]
[1764591507387,7.1148,126.54,126.51,3.26]
[1764591508793,7.1148,126.54,126.53,3.37]
[1764591510197,7.1148,126.54,126.52,6.00535079]
[1764591510994,0.05229827,126.55,126.5,3.37]
[1764591511496,7.1155,126.52,126.49,12.13705014]
[1764591511696,7.17434466,126.52,126.49,12.13705014]
[1764591513800,7.116,126.51,126.49,6.13169935]
[1764591514005,7.116,126.51,126.49,9.50169935]
[1764591514899,7.1165,126.5,126.49,9.50169935]
[1764591517305,0.05884466,126.52,126.49,9.50169935]
[1764591518395,7.116,126.51,126.49,4.75653141]
[1764591519097,7.1165,126.5,126.49,4.75653141]
[1764591519396,7.1165,126.5,126.46,29.71535079]
[1764591519397,110.713,126.49,126.44,3.37]
[1764591519596,2.69102137,126.48,126.44,3.37]
[1764591519796,113.41502137,126.48,126.42,2.63535079]
[1764591520000,2.63535079,126.46,126.42,3.37]
[1764591520194,110.80617189,126.45,126.4,3.37]
[1764591520395,2.69012268,126.45,126.4,3.37]
[1764591520700,2.69012268,126.45,126.44,6.00535079]
[1764591520701,0.05477189,126.45,126.44,6.00535079]
[1764591521312,0.05477189,126.45,126.41,3.37]
[1764591521507,7.1207,126.43,126.41,3.37]
[1764591525497,7.17427189,126.45,126.41,3.37]
[1764591525698,0.05477189,126.45,126.43,3.37]
[1764591528110,0.05477189,126.45,126.43,6.00535079]
[1764591528405,0.05477189,126.45,126.44,3.37]
[1764591530409,0.05477189,126.45,126.43,3.1]
[1764591530811,0.05477189,126.45,126.41,5.73535079]
[1764591531112,0.05477189,126.45,126.42,3.1]
[1764591531309,7.1199,126.44,126.42,3.1]
[1764591534213,0.05477189,126.45,126.42,3.1]
[1764591534808,7.12,126.44,126.42,3.1]
[1764591536613,7.17407189,126.45,126.42,3.1]
[1764591538016,0.05477189,126.45,126.42,3.1]
[1764591539413,0.05477189,126.45,126.43,3.1]
[1764591540210,0.05477189,126.45,126.43,14.34762288]
[1764591540421,0.05477189,126.45,126.44,3.1]
[1764591540824,7.1176,126.48,126.45,3.1]
[1764591541314,7.1176,126.48,126.46,3.1]
[1764591541817,0.06038932,126.48,126.46,3.15750145]
[1764591543220,0.06038932,126.48,126.47,7.22722288]
[1764591543418,7.1166,126.5,126.48,3.1]
[1764591543618,7.1166,126.5,126.49,30.22]
[1764591545121,0.05632828,126.51,126.49,30.22]
[1764591545326,0.05632828,126.51,126.49,30.27293467]
[1764591545628,0.05632828,126.51,126.5,3.1]
[1764591547522,110.6439,126.57,126.5,3.1]
[1764591547829,7.1135,126.56,126.51,3.1]
[1764591548321,0.05501165,126.55,126.53,3.1]
[1764591550221,0.05501165,126.55,126.52,0.05969011]
[1764591550426,7.16871165,126.55,126.52,3.15969011]
[1764591553629,0.05501165,126.55,126.54,3.1]
[1764591553829,114.72512288,126.62,126.54,3.1]
[1764591554731,110.68272959,126.59,126.57,0.05999245]
[1764591556325,7.112,126.58,126.57,0.05999245]
[1764591558731,110.6501,126.56,126.51,3.1]
[1764591558938,114.77732288,126.56,126.51,3.1]
[1764591559622,4.12722288,126.54,126.48,3.1]
[1764591559933,0.05314137,126.52,126.5,0.0518906]
[1764591560637,7.1161,126.51,126.5,0.0518906]
[1764591562433,7.1161,126.51,126.5,3.2818906]
[1764591562638,7.1161,126.51,126.5,0.0518906]
[1764591581546,7.1161,126.51,126.5,3.1518906]
[1764591582544,7.1161,126.51,126.5,0.0518906]
[1764591586342,7.1161,126.51,126.5,3.1518906]
[1764591587244,0.05314137,126.52,126.5,3.1518906]
[1764591588545,7.16854137,126.52,126.5,3.1518906]
[1764591598753,7.1159,126.51,126.5,0.0518906]
[1764591599857,0.05314137,126.52,126.5,3.2718906]
[1764591601461,7.1159,126.51,126.5,3.2718906]
[1764591602969,0.05314137,126.52,126.5,3.2718906]
[1764591606263,0.05314137,126.52,126.5,0.0518906]
[1764591606464,0.05314137,126.52,126.5,3.2718906]
[1764591606761,0.05314137,126.52,126.5,0.0518906]
[1764591606958,7.1159,126.51,126.5,0.0518906]
[1764591610657,9.80662967,126.52,126.5,0.0518906]
[1764591610858,2.69122967,126.52,126.5,0.0518906]
[1764591612357,7.1159,126.51,126.5,0.0518906]
[1764591612665,0.05314137,126.52,126.5,3.2718906]
[1764591614868,7.16854137,126.52,126.5,3.2718906]
[1764591619869,7.1159,126.51,126.5,3.2718906]
[1764591620073,7.1159,126.51,126.5,0.0518906]
[1764591625575,9.7539883,126.51,126.5,0.0518906]
[1764591630367,7.1177,126.48,126.45,3.25]
[1764591630971,7.1172,126.49,126.45,3.25]
[1764591631376,0.05263518,126.48,126.46,0.05568446]
[1764591631568,0.05263518,126.48,126.46,3.30568446]
[1764591632181,0.05263518,126.48,126.46,0.05568446]
[1764591632978,9.7562883,126.47,126.46,0.05568446]
[1764591634571,7.1182,126.47,126.46,0.05568446]
[1764591636277,7.17033518,126.48,126.46,0.05568446]
[1764591636478,0.05263518,126.48,126.46,3.30568446]
[1764591637083,7.17033518,126.48,126.46,3.30568446]
[1764591637882,0.05263518,126.48,126.46,3.30568446]
[1764591638189,0.05263518,126.48,126.47,3.25]
[1764591638981,7.1154,126.52,126.48,3.25]
[1764591639176,7.1154,126.52,126.49,3.25]
[1764591639386,2.6380883,126.54,126.49,3.25]
[1764591639586,7.116,126.51,126.49,3.25]
[1764591639980,7.116,126.51,126.49,3.30819018]
[1764591639981,7.17579046,126.51,126.49,3.30819018]
[1764591640183,7.1165,126.5,126.49,0.05819018]
[1764591640576,9.7545883,126.5,126.49,0.05819018]
[1764591640886,7.1165,126.5,126.49,0.05819018]
[1764591641081,9.7545883,126.5,126.49,0.05819018]
[1764591642478,7.1188,126.46,126.43,3.25]
[1764591643588,7.17038039,126.46,126.43,3.30321288]
[1764591646581,7.17038039,126.46,126.45,3.25]
[1764591648787,0.05158039,126.46,126.45,3.25]
[1764591651493,7.17028039,126.46,126.45,3.25]
[1764591660797,7.1179,126.48,126.45,3.25]
[1764591660985,110.6862,126.52,126.45,3.25]
[1764591661791,0.05341672,126.5,126.47,0.0566254]
[1764591661991,0.05341672,126.5,126.47,3.3966254]
[1764591662300,7.1171,126.49,126.47,3.3966254]
[1764591663097,0.05341672,126.5,126.48,3.34]
[1764591663504,0.05341672,126.5,126.48,10.4576]
[1764591663793,0.05341672,126.5,126.49,3.34]
[1764591664506,0.05341672,126.5,126.49,7.46559742]
[1764591665392,0.05341672,126.5,126.49,3.34]
[1764591671403,7.1146,126.54,126.5,3.34]
[1764591671603,110.6236,126.59,126.52,3.34]
[1764591671817,110.6236,126.59,126.53,3.34]
[1764591672322,4.12559742,126.61,126.54,3.34]
[1764591672606,0.05673499,126.59,126.56,3.39296362]
[1764591675703,7.16833499,126.59,126.56,3.39296362]
[1764591680912,7.1121,126.58,126.56,3.39296362]
[1764591683123,7.1121,126.58,126.56,0.05296362]
[1764591683620,0.05673499,126.59,126.56,0.05296362]
[1764591684821,7.112,126.58,126.56,3.21296362]
[1764591685221,7.112,126.58,126.56,0.05296362]
[1764591688813,7.112,126.58,126.56,3.24296362]
[1764591689221,0.05673499,126.59,126.56,3.24296362]
[1764591690120,0.05673499,126.59,126.56,10.35596362]
[1764591690324,0.05673499,126.59,126.57,3.19]
[1764591691120,0.05673499,126.59,126.58,3.19]
[1764591693532,0.05673499,126.59,126.58,10.302]
[1764591693728,4.12559742,126.68,126.59,3.19]
[1764591693932,4.12559742,126.7,126.61,3.19]
[1764591694231,4.12559742,126.7,126.62,3.19]
[1764591694820,7.166351,126.67,126.65,0.05095838]
[1764591696629,0.059351,126.67,126.65,0.05095838]
[1764591696823,0.059351,126.67,126.65,3.24095838]
[1764591697827,4.12559742,126.73,126.65,3.24095838]
[1764591698135,4.12559742,126.74,126.65,3.19]
[1764591698324,4.12559742,126.74,126.67,3.19]
[1764591698831,7.1583271,126.72,126.69,0.06071005]
[1764591699226,0.0538271,126.72,126.69,0.06071005]
[1764591701432,7.1582271,126.72,126.69,0.06071005]
[1764591703838,7.1049,126.71,126.69,0.06071005]
[1764591704042,4.12559742,126.7,126.69,0.06071005]
[1764591704344,7.1068,126.68,126.63,3.19]
[1764591705142,7.1073,126.67,126.63,3.19]
[1764591705344,0.05422386,126.66,126.64,0.05467264]
[1764591706244,7.16172386,126.66,126.64,0.05467264]
[1764591708243,7.16172386,126.66,126.64,3.24467264]
[1764591708434,0.05422386,126.66,126.64,3.24467264]
[1764591714049,0.05422386,126.66,126.64,0.05467264]
[1764591714649,7.1081,126.65,126.64,0.05467264]
[1764591715045,8.6881,126.65,126.64,0.05467264]
[1764591715255,1.58,126.65,126.6,3.09]
[1764591715452,4.17982128,126.66,126.6,3.09]
[1764591716155,7.1094,126.63,126.62,0.06005031]
[1764591717156,7.1103,126.61,126.57,30.13]
[1764591717362,2.63459965,126.61,126.57,27.04]
[1764591718057,0.05727529,126.6,126.58,0.06058454]
[1764591719357,7.1114,126.59,126.58,0.06058454]
[1764591720053,0.05727529,126.6,126.58,3.15058454]
[1764591720465,0.05727529,126.6,126.58,0.06058454]
[1764591720758,0.05727529,126.6,126.58,3.15058454]
[1764591721352,7.16847529,126.6,126.58,3.15058454]
[1764591722261,7.16847529,126.6,126.58,0.06058454]
[1764591722662,7.1128,126.57,126.54,3.09]
[1764591722874,110.6107,126.61,126.54,3.09]
[1764591723061,2.63459965,126.61,126.57,3.09]
[1764591723763,0.05911495,126.6,126.58,0.0542149]
[1764591724467,7.1118,126.59,126.58,0.0542149]
[1764591732672,0.05911495,126.6,126.58,3.1442149]
[1764591733364,7.17001495,126.6,126.58,3.1442149]
[1764591733564,7.17001495,126.6,126.58,0.0542149]
[1764591733765,2.6937146,126.6,126.58,0.0542149]
[1764591733967,7.1114,126.59,126.58,0.0542149]
[1764591735072,7.1114,126.59,126.58,3.1442149]
[1764591736371,0.05911495,126.6,126.58,3.1442149]
[1764591737175,0.05911495,126.6,126.58,0.0542149]
[1764591737376,2.6937146,126.6,126.58,0.0542149]
[1764591737874,7.1114,126.59,126.58,0.0542149]
[1764591740573,9.74599965,126.59,126.58,0.0542149]
[1764591742974,7.1143,126.54,126.52,3.09]
[1764591743877,0.05201779,126.54,126.53,5.98459965]
[1764591745872,0.05201779,126.54,126.53,67.98459965]
[1764591746486,7.1123,126.58,126.54,3.35]
[1764591746677,7.1123,126.58,126.56,3.35]
[1764591747381,7.16371814,126.58,126.56,3.39977473]
[1764591747776,7.16371814,126.58,126.57,5.98459965]
[1764591750087,0.05141814,126.58,126.57,5.98459965]
[1764591752085,0.05141814,126.58,126.57,3.35]
[1764591756492,0.05141814,126.58,126.56,0.04977473]
[1764591756891,7.1126,126.57,126.56,0.04977473]
[1764591757893,7.1126,126.57,126.56,3.20977473]
[1764591758493,7.1126,126.57,126.56,0.04977473]
[1764591765605,7.1126,126.57,126.56,3.20977473]
[1764591766907,0.05141814,126.58,126.56,3.20977473]
[1764591768493,0.05141814,126.58,126.57,5.79459965]
[1764591770909,0.05141814,126.58,126.57,3.21]
[1764591772605,0.05141814,126.58,126.56,3.25977473]
[1764591772911,7.16361814,126.58,126.56,3.25977473]
[1764591773111,0.05141814,126.58,126.56,0.04977473]
[1764591774105,0.05141814,126.58,126.56,3.25977473]
[1764591774307,0.05141814,126.58,126.56,0.04977473]
[1764591774509,110.68611814,126.58,126.52,3.21]
[1764591774708,2.63459965,126.57,126.52,3.21]
[1764591775403,2.63459965,126.57,126.54,3.21]
[1764591775602,2.69497448,126.57,126.54,3.21]
[1764591776403,7.1137,126.55,126.54,3.21]
[1764591777812,0.06037483,126.57,126.54,3.21]
[1764591779315,7.1131,126.56,126.54,3.21]
[1764591779810,0.06037483,126.57,126.54,3.21]
[1764591781412,110.6058,126.61,126.56,3.21]
[1764591782515,0.0529709,126.6,126.58,3.21]
[1764591783314,7.1115,126.59,126.58,3.21]
[1764591784408,7.1638709,126.6,126.58,3.21]
[1764591786114,0.0529709,126.6,126.58,3.21]
[1764591787408,4.12048008,126.69,126.62,3.21]
[1764591788309,7.15999398,126.67,126.64,0.05324611]
[1764591788506,7.15999398,126.67,126.64,3.26324611]
[1764591790012,0.05259398,126.67,126.64,3.26324611]
[1764591791326,0.05259398,126.67,126.66,3.21]
[1764591793423,7.1039,126.73,126.67,3.21]
[1764591793613,114.60918008,126.75,126.67,3.21]
[1764591794221,110.4926,126.74,126.67,3.21]
[1764591794425,0.0600511,126.72,126.69,0.05982438]
[1764591795127,0.0600511,126.72,126.69,3.26982438]
[1764591796529,0.0600511,126.72,126.7,3.21]
[1764591797320,7.1015,126.77,126.7,3.21]
[1764591797526,7.1015,126.77,126.72,3.21]
[1764591798031,114.59278008,126.77,126.7,3.21]
[1764591798527,0.05144857,126.75,126.72,0.05620478]
[1764591798722,7.1032,126.74,126.72,0.05620478]
[1764591799634,7.1032,126.74,126.72,3.26620478]
[1764591803630,7.1032,126.74,126.72,0.05620478]
[1764591810137,7.1036,126.73,126.72,0.05620478]
[1764591810734,11.22408008,126.73,126.72,0.05620478]
[1764591810934,7.1055,126.7,126.67,3.3]
[1764591811734,7.1059,126.69,126.67,3.3]
[1764591812039,0.05366703,126.69,126.67,0.05430329]
[1764591812437,0.05366703,126.69,126.67,3.28430329]
[1764591813339,7.15956703,126.69,126.67,3.28430329]
[1764591813740,7.15956703,126.69,126.67,0.05430329]
[1764591814840,7.1064,126.68,126.67,0.05430329]
[1764591821150,7.15956703,126.69,126.67,3.28430329]
[1764591821751,7.15956703,126.69,126.67,0.05430329]
[1764591824158,7.1064,126.68,126.67,0.05430329]
[1764591826458,7.1077,126.66,126.63,3.23]
[1764591826762,114.66708008,126.68,126.6,3.23]
[1764591827362,7.1082,126.65,126.6,3.23]
[1764591827563,7.16093391,126.65,126.63,0.05235796]
[1764591830255,7.1086,126.64,126.63,0.05235796]
[1764591830964,0.05273391,126.65,126.63,3.34235796]
[1764591833255,7.16083391,126.65,126.63,3.34235796]
[1764591833455,0.05273391,126.65,126.63,3.34235796]
[1764591833660,7.16083391,126.65,126.63,3.34235796]
[1764591835767,7.1086,126.64,126.63,0.05235796]
[1764591838669,7.1086,126.64,126.63,3.34235796]
[1764591838869,0.05273391,126.65,126.63,3.34235796]
[1764591839668,0.05273391,126.65,126.63,0.05235796]
[1764591840067,7.1086,126.64,126.63,3.34235796]
[1764591842071,7.1086,126.64,126.63,0.05235796]
[1764591845471,110.5897,126.63,126.57,3.29]
[1764591845672,113.23637518,126.62,126.54,5.92387518]
[1764591845879,7.1125,126.58,126.55,3.29]
[1764591846586,7.16942133,126.58,126.55,3.34031505]
[1764591850482,0.05692133,126.58,126.55,3.34031505]
[1764591851382,0.05692133,126.58,126.55,10.45401505]
[1764591851585,0.05692133,126.58,126.56,3.29]
[1764591851987,0.05692133,126.58,126.56,5.92387518]
[1764591852282,0.05692133,126.58,126.57,3.29]
[1764591852682,0.05692133,126.58,126.56,3.29]
[1764591853083,7.16902133,126.58,126.56,3.29]
[1764591855487,0.05692133,126.58,126.56,3.29]
[1764591856303,7.16912133,126.58,126.56,3.29]
[1764591856509,0.05692133,126.58,126.55,0.05031505]
[1764591856900,0.05692133,126.58,126.55,3.34031505]
[1764591857406,7.1126,126.57,126.55,3.34031505]
[1764591860812,7.1126,126.57,126.55,0.05031505]
[1764591861401,7.1131,126.56,126.55,0.05031505]
[1764591863808,7.1143,126.54,126.52,3.21]
[1764591864722,0.05351198,126.54,126.52,3.26698184]
[1764591865014,0.05351198,126.54,126.53,5.84387518]
[1764591865316,7.1122,126.58,126.55,3.21]
[1764591865515,7.1122,126.58,126.56,3.21]
[1764591866117,7.1112,126.6,126.56,3.21]
[1764591866415,0.06009112,126.58,126.56,3.26119683]
[1764591869319,0.06009112,126.58,126.56,0.05119683]
[1764591870006,0.06009112,126.58,126.56,3.30119683]
[1764591872318,0.06009112,126.58,126.57,5.88387518]
[1764591872519,2.63387518,126.64,126.58,3.25]
[1764591872721,2.63387518,126.64,126.59,5.88387518]
[1764591873418,7.1103,126.62,126.6,0.05945172]
[1764591874314,7.1103,126.61,126.6,0.05945172]
[1764591876619,7.1118,126.59,126.56,5.88387518]
[1764591877223,7.1121,126.58,126.56,5.88387518]
[1764591877521,7.16390395,126.58,126.56,5.93870977]
[1764591879122,0.05180395,126.58,126.56,5.93870977]
[1764591879324,0.05180395,126.58,126.57,3.25]
[1764591879522,0.05180395,126.58,126.56,0.05483459]
[1764591880120,7.16390395,126.58,126.56,3.30483459]
[1764591882915,7.16390395,126.58,126.56,0.05483459]
[1764591883424,7.16390395,126.58,126.56,3.30483459]
[1764591883628,0.05180395,126.58,126.57,5.88387518]
[1764591884922,0.05180395,126.58,126.57,3.25]
[1764591896042,0.00180395,126.58,126.57,10.3626]
[1764591898438,7.1097,126.63,126.6,3.14]
[1764591899541,7.16877038,126.63,126.6,3.19960738]
[1764591901338,0.05907038,126.63,126.6,0.05960738]
[1764591902136,7.1103,126.61,126.6,0.05960738]
[1764591906646,7.112,126.59,126.54,72.2537]
[1764591906948,110.6146,126.6,126.55,3.14]
[1764591907745,0.05374257,126.59,126.56,0.05087366]
[1764591908341,0.05374257,126.59,126.56,3.19087366]
[1764591909441,7.1125,126.58,126.56,3.19087366]
[1764591910346,0.05374257,126.59,126.56,3.19087366]
[1764591910552,0.05374257,126.59,126.57,3.14]
[1764591914057,114.68374483,126.66,126.59,3.14]
[1764591914058,110.5687,126.66,126.59,3.14]
[1764591914249,110.549,126.68,126.59,3.14]
[1764591914555,7.1088,126.64,126.61,3.14]
[1764591915154,7.1654632,126.64,126.61,3.19089141]
[1764591918965,0.0566632,126.64,126.61,10.30099141]
[1764591919157,0.0566632,126.64,126.62,3.14]
[1764591919362,0.0566632,126.64,126.63,3.14]